bitfinex-derivatives/quotes_BTCF0:USTF0_20250527
["timestamp","ask_amount","ask_price","bid_price","bid_amount"]
[1748320920945,2.04445197,109230.0,109220.0,0.17216635]
[1748320922047,0.1830777,109220.0,109210.0,0.02674895]
[1748320922345,0.74490821,109220.0,109210.0,0.02674895]
[1748320923447,0.74490821,109220.0,109210.0,0.02774895]
[1748320923751,0.86592705,109220.0,109210.0,0.01474036]
[1748320924047,0.86592705,109220.0,109210.0,0.01374036]
[1748320924245,0.86592705,109220.0,109210.0,0.01474036]
[1748320924849,0.86792705,109220.0,109210.0,0.01374036]
[1748320926453,0.86992705,109220.0,109210.0,0.01374036]
[1748320927047,0.86992705,109220.0,109210.0,0.04704036]
[1748320928847,0.86992705,109220.0,109210.0,0.01374036]
[1748320929353,0.1830953,109210.0,109200.0,0.0651]
[1748320929543,0.1831288,109190.0,109180.0,5e-08]
[1748320929739,0.1831456,109180.0,109170.0,0.0540537]
[1748320929944,0.74617611,109180.0,109170.0,0.0540537]
[1748320930150,0.74617611,109180.0,109170.0,0.0640537]
[1748320930348,0.74617611,109180.0,109170.0,0.0406]
[1748320930552,0.74617611,109180.0,109170.0,0.2237623]
[1748320930553,1.4389256,109180.0,109170.0,0.2237623]
[1748320930751,1.54637611,109180.0,109170.0,0.2237623]
[1748320931454,1.54637611,109180.0,109170.0,0.2277623]
[1748320932154,1.63924937,109180.0,109170.0,0.2317623]
[1748320932654,1.63924937,109180.0,109170.0,0.2277623]
[1748320932857,1.63924937,109180.0,109170.0,0.0446]
[1748320933249,1.58219216,109180.0,109170.0,0.0446]
[1748320934051,1.58319216,109180.0,109170.0,0.0406]
[1748320934755,1.58319216,109180.0,109170.0,0.0734]
[1748320937259,1.58319216,109180.0,109170.0,0.0406]
[1748320937459,0.1831625,109170.0,109160.0,0.0639375]
[1748320937653,0.71409301,109170.0,109160.0,0.1355375]
[1748320938356,0.71409301,109170.0,109160.0,0.3187168]
[1748320938754,0.71409301,109170.0,109160.0,0.3197168]
[1748320938955,0.71409301,109170.0,109160.0,0.3207168]
[1748320939357,0.74990906,109170.0,109160.0,0.3207168]
[1748320939959,0.74990906,109170.0,109160.0,0.3197168]
[1748320940362,0.75090906,109170.0,109160.0,0.3187168]
[1748320941765,0.71509301,109170.0,109160.0,0.3187168]
[1748320945369,0.6077625,109170.0,109160.0,0.3187168]
[1748320945576,0.9891425,109170.0,109160.0,0.3187168]
[1748320945770,1.09647301,109170.0,109160.0,0.3187168]
[1748320946073,1.09659301,109170.0,109160.0,0.3187168]
[1748320948476,1.12819301,109170.0,109160.0,0.3187168]
[1748320948681,1.16391408,109170.0,109160.0,0.3187168]
[1748320952081,0.80311408,109170.0,109160.0,0.3187168]
[1748320952279,1.52471408,109170.0,109160.0,0.3187168]
[1748320954984,0.80311408,109170.0,109160.0,0.3187168]
[1748320955182,1.52471408,109170.0,109160.0,0.3187168]
[1748320956885,1.52471408,109170.0,109160.0,0.2857168]
[1748320958290,1.52471408,109170.0,109160.0,0.0401375]
[1748320958490,1.63204459,109170.0,109160.0,0.0401375]
[1748320958878,1.52471408,109170.0,109160.0,0.0401375]
[1748320959183,1.58177129,109170.0,109160.0,0.0401375]
[1748320960992,1.58177129,109170.0,109160.0,0.2233168]
[1748320964092,1.6891018,109170.0,109160.0,0.0401375]
[1748320964896,1.58177129,109170.0,109160.0,0.0401375]
[1748320965096,1.58177129,109170.0,109160.0,0.2233168]
[1748320967498,1.6673571,109170.0,109160.0,0.2233168]
[1748320969893,1.66746619,109170.0,109160.0,0.2233168]
[1748320970797,0.86028038,109170.0,109160.0,0.2233168]
[1748320970997,1.58188038,109170.0,109160.0,0.2233168]
[1748320971701,1.66746619,109170.0,109160.0,0.2233168]
[1748320973102,1.66746619,109170.0,109160.0,0.0401375]
[1748320973295,1.58188038,109170.0,109160.0,0.0401375]
[1748320973901,1.68934926,109170.0,109160.0,0.0401375]
[1748320974498,1.77493507,109170.0,109160.0,0.0401375]
[1748320975702,1.66748083,109170.0,109160.0,0.0401375]
[1748320976005,1.66736083,109170.0,109160.0,0.0401375]
[1748320977402,0.94576083,109170.0,109160.0,0.0401375]
[1748320977603,1.66736083,109170.0,109160.0,0.0401375]
[1748320978609,1.77481507,109170.0,109160.0,0.0401375]
[1748320979111,1.71775786,109170.0,109160.0,0.0401375]
[1748320979305,1.71775786,109170.0,109160.0,0.0001375]
[1748320985019,1.61030362,109170.0,109160.0,0.0001375]
[1748320985202,1.30547786,109170.0,109160.0,0.0001375]
[1748320985504,1.71779786,109170.0,109160.0,0.0622375]
[1748320985699,1.61034362,109170.0,109160.0,0.0622375]
[1748320986112,1.09056938,109170.0,109160.0,0.2454168]
[1748320986414,1.09056938,109170.0,109160.0,0.3884168]
[1748320986415,1.61046362,109170.0,109160.0,0.3884168]
[1748320986802,1.61034362,109170.0,109160.0,0.3884168]
[1748320987112,1.61046362,109170.0,109160.0,0.3884168]
[1748320987314,1.50300938,109170.0,109160.0,0.3884168]
[1748320987611,1.61046362,109170.0,109160.0,0.3884168]
[1748320987811,1.05908938,109170.0,109160.0,0.3884168]
[1748320988006,1.47140938,109170.0,109160.0,0.3884168]
[1748320988206,1.47128938,109170.0,109160.0,0.3884168]
[1748320988408,1.52850213,109170.0,109160.0,0.3884168]
[1748320988603,1.52862213,109170.0,109160.0,0.3884168]
[1748320989009,1.63607637,109170.0,109160.0,0.3884168]
[1748320989305,1.22375637,109170.0,109160.0,0.3884168]
[1748320989510,1.63607637,109170.0,109160.0,0.3884168]
[1748320990009,1.58189056,109170.0,109160.0,0.3884168]
[1748320994217,1.66747637,109170.0,109160.0,0.3884168]
[1748320999917,1.66745314,109170.0,109160.0,0.3884168]
[1748321003624,1.61024039,109170.0,109160.0,0.3884168]
[1748321005824,1.7176714,109170.0,109160.0,0.1411375]
[1748321006121,1.7176714,109170.0,109160.0,0.1101375]
[1748321007420,0.1831793,109160.0,109150.0,0.01215356]
[1748321007729,0.85354132,109160.0,109150.0,0.14215356]
[1748321008622,0.94650142,109160.0,109150.0,0.14315356]
[1748321008921,0.94650142,109160.0,109150.0,0.32634966]
[1748321009127,0.94650142,109160.0,109150.0,0.32734966]
[1748321009424,0.94650142,109160.0,109150.0,0.14415356]
[1748321009622,0.83907041,109160.0,109150.0,0.32734966]
[1748321010024,0.83919041,109160.0,109150.0,0.32734966]
[1748321010416,0.83919041,109160.0,109150.0,0.35934966]
[1748321011731,1.19999041,109160.0,109150.0,0.35934966]
[1748321011927,1.19999836,109160.0,109150.0,0.35934966]
[1748321016929,0.47839836,109160.0,109150.0,0.35934966]
[1748321017229,1.19999836,109160.0,109150.0,0.35934966]
[1748321021228,0.47839836,109160.0,109150.0,0.35934966]
[1748321021434,1.19999836,109160.0,109150.0,0.35934966]
[1748321021730,1.19999836,109160.0,109150.0,0.16995515]
[1748321021932,1.19999836,109160.0,109150.0,0.20995515]
[1748321023127,0.47839836,109160.0,109150.0,0.20995515]
[1748321023430,1.19999836,109160.0,109150.0,0.20995515]
[1748321024133,0.47839836,109160.0,109150.0,0.20995515]
[1748321024336,1.19999836,109160.0,109150.0,0.20995515]
[1748321025034,0.47839836,109160.0,109150.0,0.20995515]
[1748321025333,1.19999836,109160.0,109150.0,0.20995515]
[1748321027038,1.19999836,109160.0,109150.0,0.17795515]
[1748321027633,1.19999836,109160.0,109150.0,0.04]
[1748321027834,1.19999836,109160.0,109150.0,0.2231961]
[1748321028934,1.61231836,109160.0,109150.0,0.2231961]
[1748321030238,1.25151836,109160.0,109150.0,0.2231961]
[1748321030441,1.61231836,109160.0,109150.0,0.2231961]
[1748321031942,1.61232394,109160.0,109150.0,0.2231961]
[1748321033637,1.20000394,109160.0,109150.0,0.2231961]
[1748321033944,1.61236394,109160.0,109150.0,0.2231961]
[1748321034143,1.61236394,109160.0,109150.0,0.2538961]
[1748321034350,1.61224394,109160.0,109150.0,0.2854961]
[1748321035053,1.61236394,109160.0,109150.0,0.2854961]
[1748321036954,1.20000394,109160.0,109150.0,0.2854961]
[1748321037158,1.61236394,109160.0,109150.0,0.2854961]
[1748321039957,1.61236394,109160.0,109150.0,0.2538961]
[1748321042959,1.5049194,109160.0,109150.0,0.2538961]
[1748321043160,1.61236394,109160.0,109150.0,0.2538961]
[1748321043862,1.61236394,109160.0,109150.0,0.26169508]
[1748321048163,1.71980848,109160.0,109150.0,0.23099508]
[1748321048566,1.5049194,109160.0,109150.0,0.23099508]
[1748321048770,1.71980848,109160.0,109150.0,0.23099508]
[1748321049470,1.0925594,109160.0,109150.0,0.23099508]
[1748321049667,1.61236394,109160.0,109150.0,0.23099508]
[1748321049867,1.61224394,109160.0,109150.0,0.29409508]
[1748321050372,0.98420464,109160.0,109150.0,0.29409508]
[1748321050566,1.39668464,109160.0,109150.0,0.40153962]
[1748321050767,1.57986394,109160.0,109150.0,0.40593144]
[1748321050962,0.8768801,109160.0,109150.0,0.40593144]
[1748321051268,1.16170491,109160.0,109150.0,0.40593144]
[1748321051562,1.16182491,109160.0,109150.0,0.40593144]
[1748321053368,0.56628561,109160.0,109150.0,0.40593144]
[1748321053569,1.16182501,109160.0,109150.0,0.40593144]
[1748321053766,1.05426047,109160.0,109150.0,0.40153962]
[1748321053960,1.05438047,109160.0,109150.0,0.40153962]
[1748321056470,1.16182501,109160.0,109150.0,0.40153962]
[1748321057369,0.80102501,109160.0,109150.0,0.40153962]
[1748321057668,1.16182501,109160.0,109150.0,0.40153962]
[1748321058871,1.16182501,109160.0,109150.0,0.29409508]
[1748321059169,1.16182501,109160.0,109150.0,0.26289508]
[1748321059866,1.26926955,109160.0,109150.0,0.23099508]
[1748321061672,1.63006955,109160.0,109150.0,0.23099508]
[1748321062675,1.63006955,109160.0,109150.0,0.2231961]
[1748321063974,1.63006955,109160.0,109150.0,0.23099508]
[1748321068372,1.41518047,109160.0,109150.0,0.23099508]
[1748321068573,1.63006955,109160.0,109150.0,0.23099508]
[1748321070173,1.63006955,109160.0,109150.0,0.04779898]
[1748321072175,1.66266955,109160.0,109150.0,0.04779898]
[1748321072682,1.71990858,109160.0,109150.0,0.04]
[1748321075980,0.1832125,109140.0,109130.0,0.19101588]
[1748321076275,1.06377704,109140.0,109130.0,0.43352878]
[1748321076475,1.15767704,109140.0,109130.0,0.43352878]
[1748321076677,1.15767704,109140.0,109130.0,0.48032713]
[1748321077276,1.15767704,109140.0,109130.0,0.48332713]
[1748321077471,1.0502325,109140.0,109130.0,0.48332713]
[1748321077979,1.0502325,109140.0,109130.0,0.59077167]
[1748321078882,1.0502325,109140.0,109130.0,0.59377167]
[1748321079883,1.15767704,109140.0,109130.0,0.59377167]
[1748321080182,1.15767704,109140.0,109130.0,0.60274961]
[1748321080982,1.15767704,109140.0,109130.0,0.63384961]
[1748321081186,1.15771704,109140.0,109130.0,0.63384961]
[1748321081992,0.74535704,109140.0,109130.0,0.63384961]
[1748321082284,1.15771704,109140.0,109130.0,0.63384961]
[1748321082885,1.0502725,109140.0,109130.0,0.63384961]
[1748321083887,1.15771704,109140.0,109130.0,0.63384961]
[1748321084483,1.15771704,109140.0,109130.0,0.44628604]
[1748321084684,1.15771704,109140.0,109130.0,0.62950624]
[1748321084889,1.0502725,109140.0,109130.0,0.5220617]
[1748321085091,1.0502725,109140.0,109130.0,0.62950624]
[1748321088991,0.6379125,109140.0,109130.0,0.62950624]
[1748321089287,1.0502725,109140.0,109130.0,0.62950624]
[1748321089787,1.0502725,109140.0,109130.0,0.62605393]
[1748321091390,0.6894725,109140.0,109130.0,0.51860939]
[1748321091590,0.6894725,109140.0,109130.0,0.62605393]
[1748321092590,0.6894725,109140.0,109130.0,0.63644002]
[1748321093489,0.79691704,109140.0,109130.0,0.63644002]
[1748321094291,0.6894725,109140.0,109130.0,0.63644002]
[1748321095091,1.0502725,109140.0,109130.0,0.63644002]
[1748321095291,0.6894725,109140.0,109130.0,0.63644002]
[1748321097790,0.0939,109140.0,109130.0,0.63644002]
[1748321098003,0.033,109140.0,109130.0,0.99724002]
[1748321098394,0.03312,109140.0,109130.0,0.63644002]
[1748321098594,0.03312,109140.0,109130.0,0.99724002]
[1748321100194,0.2163324,109140.0,109130.0,0.52899548]
[1748321100496,0.2163324,109140.0,109130.0,0.99266002]
[1748321100795,0.2785324,109140.0,109130.0,0.99266002]
[1748321102396,0.2785324,109140.0,109130.0,1.02416002]
[1748321102595,0.09532,109140.0,109130.0,1.02416002]
[1748321102989,0.06402,109140.0,109130.0,1.52496002]
[1748321103392,0.0639,109140.0,109130.0,1.38496002]
[1748321103599,0.06402,109140.0,109130.0,1.38496002]
[1748321103900,0.03312,109140.0,109130.0,1.61658802]
[1748321104301,0.033,109140.0,109130.0,1.61658802]
[1748321104499,0.03312,109140.0,109130.0,1.61658802]
[1748321104696,0.06913912,109140.0,109130.0,1.61658802]
[1748321106194,0.03312,109140.0,109130.0,1.61658802]
[1748321109496,0.03312,109140.0,109130.0,1.52496002]
[1748321111802,0.03312,109140.0,109130.0,1.52764154]
[1748321112404,0.03312,109140.0,109130.0,1.57871462]
[1748321114906,0.03312,109140.0,109130.0,1.58916794]
[1748321115600,0.03312,109140.0,109130.0,1.53809486]
[1748321115804,0.03312,109140.0,109130.0,1.17729486]
[1748321116102,0.03312,109140.0,109130.0,1.53809486]
[1748321116602,0.03312,109140.0,109130.0,1.43065032]
[1748321116809,0.03312,109140.0,109130.0,1.53809486]
[1748321117108,0.09512,109140.0,109130.0,1.53809486]
[1748321117701,0.09512,109140.0,109130.0,1.15077486]
[1748321118205,0.09512,109140.0,109130.0,1.14579486]
[1748321118396,0.09512,109140.0,109130.0,1.50659486]
[1748321118906,0.09512,109140.0,109130.0,1.11927486]
[1748321119095,0.09512,109140.0,109130.0,0.99272725]
[1748321119608,0.2783324,109140.0,109130.0,0.60540725]
[1748321119909,0.2783324,109140.0,109130.0,0.99272725]
[1748321122213,0.2783324,109140.0,109130.0,0.82060351]
[1748321122514,0.2783324,109140.0,109130.0,0.87060351]
[1748321124618,0.2783324,109140.0,109130.0,0.48328351]
[1748321124813,0.09512,109140.0,109130.0,0.87060351]
[1748321125521,0.09512,109140.0,109130.0,1.23140351]
[1748321126017,0.09512,109140.0,109130.0,1.23579533]
[1748321126221,0.09512,109140.0,109130.0,1.26889533]
[1748321126407,0.09512,109140.0,109130.0,1.40889533]
[1748321126603,0.09512,109140.0,109130.0,1.27039533]
[1748321126916,0.09512,109140.0,109130.0,1.40600351]
[1748321127217,0.13111739,109140.0,109130.0,1.40600351]
[1748321127822,0.13099739,109140.0,109130.0,1.40600351]
[1748321128025,0.13111739,109140.0,109130.0,1.40600351]
[1748321128413,0.09512,109140.0,109130.0,1.28810565]
[1748321128625,0.09512,109140.0,109130.0,1.39555019]
[1748321129822,0.06442,109140.0,109130.0,1.39555019]
[1748321132221,0.09632,109140.0,109130.0,1.39555019]
[1748321134222,0.09632,109140.0,109130.0,1.4086178]
[1748321143627,0.09632,109140.0,109130.0,1.30117326]
[1748321143823,0.09632,109140.0,109130.0,1.4086178]
[1748321144133,0.09632,109140.0,109130.0,1.41300962]
[1748321145137,0.09632,109140.0,109130.0,1.4086178]
[1748321147035,0.09632,109140.0,109130.0,1.4071178]
[1748321147737,0.09632,109140.0,109130.0,1.45818231]
[1748321152637,0.09632,109140.0,109130.0,1.4071178]
[1748321153335,0.09632,109140.0,109130.0,1.2671178]
[1748321153539,0.09632,109140.0,109130.0,1.4071178]
[1748321153746,0.09632,109140.0,109130.0,1.4086178]
[1748321155137,0.09632,109140.0,109130.0,1.2686178]
[1748321155342,0.09632,109140.0,109130.0,1.4086178]
[1748321158343,0.09632,109140.0,109130.0,1.41300962]
[1748321158541,0.0962,109140.0,109130.0,1.41300962]
[1748321159541,0.0962,109140.0,109130.0,1.4086178]
[1748321159738,0.0962,109140.0,109130.0,1.0212978]
[1748321159941,0.0962,109140.0,109130.0,1.8208178]
[1748321162342,0.09632,109140.0,109130.0,1.8208178]
[1748321162543,0.09632,109140.0,109130.0,1.82520962]
[1748321163242,0.09632,109140.0,109130.0,1.87627413]
[1748321163445,0.09632,109140.0,109130.0,1.87188231]
[1748321165045,0.09632,109140.0,109130.0,1.45956231]
[1748321168248,0.09632,109140.0,109130.0,1.07236231]
[1748321168449,0.09632,109140.0,109130.0,1.25216231]
[1748321168649,0.09632,109140.0,109130.0,1.28336231]
[1748321168853,0.09632,109140.0,109130.0,1.42336231]
[1748321169055,0.09632,109140.0,109130.0,1.45726231]
[1748321170558,0.09632,109140.0,109130.0,1.46772307]
[1748321171556,0.09632,109140.0,109130.0,1.45726231]
[1748321171854,0.09632,109140.0,109130.0,1.4061978]
[1748321172858,0.09632,109140.0,109130.0,1.2010978]
[1748321173453,0.09632,109140.0,109130.0,1.2110978]
[1748321174156,0.09632,109140.0,109130.0,1.25255765]
[1748321174353,0.09632,109140.0,109130.0,1.28395765]
[1748321175357,0.09632,109140.0,109130.0,1.27089004]
[1748321175656,0.09632,109140.0,109130.0,0.88369004]
[1748321175857,0.09632,109140.0,109130.0,1.40089004]
[1748321176051,0.09632,109140.0,109130.0,1.26089004]
[1748321176557,0.09632,109140.0,109130.0,1.40089004]
[1748321176757,0.09632,109140.0,109130.0,1.26678186]
[1748321177143,0.09632,109140.0,109130.0,1.40678186]
[1748321177343,0.09632,109140.0,109130.0,1.40528186]
[1748321178958,0.09632,109140.0,109130.0,1.39482201]
[1748321179759,0.09632,109140.0,109130.0,1.39043019]
[1748321180567,0.09632,109140.0,109130.0,1.25043019]
[1748321180762,0.09632,109140.0,109130.0,1.39043019]
[1748321182060,0.09632,109140.0,109130.0,1.4414947]
[1748321182262,0.09632,109140.0,109130.0,1.4430947]
[1748321183565,0.09632,109140.0,109130.0,1.3030947]
[1748321183865,0.09632,109140.0,109130.0,1.4430947]
[1748321184067,0.09632,109140.0,109130.0,1.3030947]
[1748321184567,0.09632,109140.0,109130.0,1.4430947]
[1748321184967,0.09632,109140.0,109130.0,1.3030947]
[1748321185167,0.09632,109140.0,109130.0,1.25203019]
[1748321185367,0.09632,109140.0,109130.0,1.39203019]
[1748321185769,0.09632,109140.0,109130.0,1.40515066]
[1748321186564,0.09632,109140.0,109130.0,1.26515066]
[1748321186870,0.09632,109140.0,109130.0,1.41563781]
[1748321187663,0.0001375,109150.0,109140.0,0.1832123]
[1748321187866,0.0001375,109150.0,109140.0,0.85435684]
[1748321188163,0.0619575,109150.0,109140.0,0.85435684]
[1748321188369,0.0618375,109150.0,109140.0,0.85435684]
[1748321188569,0.0619575,109150.0,109140.0,0.85435684]
[1748321190469,0.0619575,109150.0,109140.0,0.85835684]
[1748321191769,0.0002575,109150.0,109140.0,1.37812138]
[1748321191974,0.01852753,109180.0,109170.0,0.183162]
[1748321192171,0.08558581,109190.0,109170.0,1.00528454]
[1748321192372,0.08558581,109190.0,109180.0,0.71588974]
[1748321192567,0.1216079,109200.0,109190.0,0.1831285]
[1748321192768,0.1216079,109200.0,109190.0,1.19151304]
[1748321193069,0.1217279,109200.0,109190.0,1.19151304]
[1748321193576,0.1217279,109200.0,109190.0,1.21499509]
[1748321193962,0.1217279,109200.0,109190.0,1.2069141]
[1748321194165,0.1217279,109200.0,109190.0,1.2669141]
[1748321194368,0.00012,109200.0,109190.0,1.2669141]
[1748321195271,0.03072,109200.0,109190.0,1.2669141]
[1748321195473,0.06172,109200.0,109190.0,1.2669141]
[1748321195867,0.06172,109200.0,109190.0,1.27994431]
[1748321196070,0.06172,109200.0,109190.0,1.30967715]
[1748321197560,0.09342,109200.0,109190.0,1.30967715]
[1748321198775,0.09342,109200.0,109190.0,0.92263715]
[1748321198974,0.09342,109200.0,109190.0,0.88097763]
[1748321199173,0.09342,109200.0,109190.0,0.77361408]
[1748321202378,0.09342,109200.0,109190.0,0.76840339]
[1748321202676,0.2765317,109200.0,109190.0,0.34834339]
[1748321202876,0.09342,109200.0,109190.0,0.70557055]
[1748321203778,0.09342,109200.0,109190.0,0.52244205]
[1748321204078,0.09342,109200.0,109190.0,0.70557055]
[1748321205580,0.09342,109200.0,109190.0,0.31861055]
[1748321205776,0.09342,109200.0,109190.0,0.70557055]
[1748321206175,0.45422,109200.0,109190.0,0.70557055]
[1748321206576,0.6373318,109200.0,109190.0,0.70557055]
[1748321207480,0.6373318,109200.0,109190.0,0.31861055]
[1748321207672,0.74469535,109200.0,109190.0,0.70553055]
[1748321208565,0.6373318,109200.0,109190.0,0.70553055]
[1748321208766,0.6373318,109200.0,109190.0,0.31661055]
[1748321209067,0.6373318,109200.0,109190.0,0.70353055]
[1748321209779,0.83627535,109200.0,109190.0,0.13348205]
[1748321209974,0.83627535,109200.0,109190.0,0.31661065]
[1748321210173,0.83627535,109200.0,109190.0,0.32100247]
[1748321211382,0.83627535,109200.0,109190.0,0.31661065]
[1748321212578,0.5458,109200.0,109190.0,0.31661065]
[1748321212778,0.0306,109200.0,109190.0,0.8798742]
[1748321212989,0.44638581,109240.0,109230.0,0.1830615]
[1748321213282,0.95008981,109240.0,109230.0,0.3130615]
[1748321213583,0.95020981,109240.0,109230.0,0.3130615]
[1748321213882,1.0792613,109240.0,109230.0,0.3130615]
[1748321215375,1.0822613,109240.0,109230.0,0.3130615]
[1748321215777,1.0792613,109240.0,109230.0,0.3130615]
[1748321215984,0.97194033,109240.0,109230.0,0.3130615]
[1748321216284,1.06764033,109240.0,109230.0,0.3130615]
[1748321216674,1.06760033,109240.0,109230.0,0.3130615]
[1748321217782,0.97605633,109240.0,109230.0,0.3130615]
[1748321218284,0.56393633,109240.0,109230.0,0.3130615]
[1748321218487,0.97605633,109240.0,109230.0,0.3130615]
[1748321219386,1.15910103,109240.0,109230.0,0.3130615]
[1748321219581,0.39182,109240.0,109230.0,0.42037783]
[1748321219789,0.3609375,109250.0,109240.0,0.1830447]
[1748321220086,0.0001375,109250.0,109240.0,1.21944103]
[1748321220383,0.0001375,109250.0,109240.0,1.25124103]
[1748321220776,0.0011375,109250.0,109240.0,1.25124103]
[1748321220973,0.0032575,109250.0,109240.0,0.86436103]
[1748321221184,0.0032575,109250.0,109240.0,1.25104103]
[1748321221384,0.0031375,109250.0,109240.0,1.25886055]
[1748321221585,0.0032575,109250.0,109240.0,1.25886055]
[1748321222287,0.0002575,109250.0,109240.0,1.25886055]
[1748321224087,0.0002575,109250.0,109240.0,1.2640556]
[1748321224286,0.0001375,109250.0,109240.0,1.2640556]
[1748321224489,0.0002575,109250.0,109240.0,1.2640556]
[1748321224884,0.0331,109270.0,109260.0,0.1830112]
[1748321225079,0.0331,109270.0,109260.0,0.6896512]
[1748321225080,0.44514,109270.0,109260.0,0.6896512]
[1748321225387,0.80594,109270.0,109260.0,0.7526512]
[1748321225688,0.83674,109270.0,109260.0,0.7526512]
[1748321226588,0.83774,109270.0,109260.0,0.7526512]
[1748321227095,0.83774,109270.0,109260.0,0.78167803]
[1748321227282,0.83974,109270.0,109260.0,0.78167803]
[1748321227683,0.83974,109270.0,109260.0,0.7526512]
[1748321228884,0.83974,109270.0,109260.0,0.76635711]
[1748321231793,0.4277,109270.0,109260.0,0.76635711]
[1748321231991,0.83966,109270.0,109260.0,0.76635711]
[1748321233705,0.94697633,109270.0,109260.0,0.76635711]
[1748321233997,1.16207083,109270.0,109260.0,0.16580591]
[1748321234198,1.16207083,109270.0,109260.0,0.33881721]
[1748321234401,0.56711633,109270.0,109260.0,0.33881721]
[1748321234602,0.87176,109270.0,109260.0,0.37201721]
[1748321234901,0.87188,109270.0,109260.0,0.37201721]
[1748321235198,0.51108,109270.0,109260.0,0.37201721]
[1748321235399,0.87188,109270.0,109260.0,0.75861721]
[1748321235594,0.87188,109270.0,109260.0,0.37201721]
[1748321235793,0.87188,109270.0,109260.0,0.75861721]
[1748321236095,0.06702,109270.0,109260.0,0.75861721]
[1748321236401,0.47886,109270.0,109260.0,0.75861721]
[1748321236701,0.83978,109270.0,109260.0,0.75861721]
[1748321237097,0.47898,109270.0,109260.0,0.75861721]
[1748321237303,0.83978,109270.0,109260.0,0.75861721]
[1748321237605,0.42782,109270.0,109260.0,0.75861721]
[1748321237807,0.83978,109270.0,109260.0,0.75861721]
[1748321238202,0.47898,109270.0,109260.0,0.75861721]
[1748321238402,0.83978,109270.0,109260.0,0.75861721]
[1748321238609,0.47898,109270.0,109260.0,0.75861721]
[1748321238907,0.83978,109270.0,109260.0,0.75861721]
[1748321239402,0.47898,109270.0,109260.0,0.75861721]
[1748321239610,0.83978,109270.0,109260.0,0.75861721]
[1748321239907,0.47898,109270.0,109260.0,0.62724214]
[1748321240104,0.03622,109270.0,109260.0,1.09535847]
[1748321240296,1e-07,109270.0,109260.0,1.23535847]
[1748321240897,0.4427575,109280.0,109270.0,0.1829946]
[1748321241095,0.4427575,109280.0,109270.0,0.3771946]
[1748321241309,0.0308375,109280.0,109270.0,0.3771946]
[1748321241510,0.0309575,109280.0,109270.0,0.48451093]
[1748321241708,0.4428775,109280.0,109270.0,1.1045546]
[1748321241909,0.4747775,109280.0,109270.0,1.1045546]
[1748321242407,0.4757775,109280.0,109270.0,1.1045546]
[1748321242910,0.0638575,109280.0,109270.0,1.23187093]
[1748321243115,0.4757775,109280.0,109270.0,1.26197093]
[1748321243311,0.4458775,109280.0,109270.0,1.26197093]
[1748321243904,0.4457575,109280.0,109270.0,1.26197093]
[1748321244203,0.4458775,109280.0,109270.0,1.26197093]
[1748321244611,0.0339575,109280.0,109270.0,1.26197093]
[1748321244916,0.4458775,109280.0,109270.0,1.26197093]
[1748321245314,0.4458775,109280.0,109270.0,1.26716598]
[1748321245513,0.0339575,109280.0,109270.0,1.26716598]
[1748321245813,0.0338375,109280.0,109270.0,1.26716598]
[1748321246113,0.4932,109300.0,109270.0,1.08417138]
[1748321246312,0.1,109300.0,109290.0,0.65107743]
[1748321246511,0.13242,109300.0,109290.0,1.19759743]
[1748321246813,0.13242,109300.0,109290.0,1.29209743]
[1748321247013,0.16422,109300.0,109290.0,1.29209743]
[1748321247203,0.1271009,109300.0,109290.0,1.29209743]
[1748321247409,1e-07,109300.0,109290.0,1.35209743]
[1748321247806,0.49949852,109310.0,109300.0,0.29026063]
[1748321248005,0.11941852,109310.0,109300.0,0.40017588]
[1748321248216,0.53125852,109310.0,109300.0,0.40017588]
[1748321248716,0.4742775,109310.0,109300.0,0.40017588]
[1748321248914,0.4752775,109310.0,109300.0,0.40017588]
[1748321249113,0.0634375,109310.0,109300.0,0.73057588]
[1748321249313,0.94339383,109310.0,109300.0,0.3129443]
[1748321249506,1.12632143,109310.0,109300.0,0.3129443]
[1748321249706,0.94339383,109310.0,109300.0,0.3129443]
[1748321249914,0.94339383,109310.0,109300.0,0.3446443]
[1748321250111,0.8360775,109310.0,109300.0,0.3760443]
[1748321250417,0.4753975,109310.0,109300.0,0.4086443]
[1748321250817,0.8360775,109310.0,109300.0,0.4086443]
[1748321251017,0.8361975,109310.0,109300.0,0.4086443]
[1748321251817,0.0080411,109310.0,109300.0,0.60596063]
[1748321252819,0.0392411,109310.0,109300.0,0.4986443]
[1748321253021,0.0392411,109310.0,109300.0,0.50383935]
[1748321253925,0.4510811,109310.0,109300.0,0.50383935]
[1748321254422,0.4510811,109310.0,109300.0,0.4986443]
[1748321254920,0.0392411,109310.0,109300.0,0.4986443]
[1748321255324,0.0392411,109310.0,109300.0,0.4086443]
[1748321256423,0.50735743,109310.0,109300.0,0.4086443]
[1748321256623,0.50735743,109310.0,109300.0,0.7310043]
[1748321256916,0.78177313,109310.0,109300.0,0.13]
[1748321257119,0.1829444,109300.0,109290.0,0.01301457]
[1748321257314,1.15736073,109300.0,109290.0,0.33597577]
[1748321257515,1.15736073,109300.0,109290.0,0.3229612]
[1748321257711,0.4553,109300.0,109290.0,0.3229612]
[1748321257917,0.4553,109300.0,109290.0,0.3549612]
[1748321258120,0.8671,109300.0,109290.0,0.4201612]
[1748321258316,0.8351,109300.0,109290.0,0.4201612]
[1748321258520,0.83522,109300.0,109290.0,0.4201612]
[1748321258719,0.8351,109300.0,109290.0,0.8065212]
[1748321258921,0.80422,109300.0,109290.0,0.91583753]
[1748321259223,0.80422,109300.0,109290.0,0.92583753]
[1748321259614,0.80422,109300.0,109290.0,0.8185212]
[1748321259809,0.80422,109300.0,109290.0,0.8085212]
[1748321260022,0.83642,109300.0,109290.0,0.8085212]
[1748321260418,0.42462,109300.0,109290.0,0.8085212]
[1748321260625,0.80422,109300.0,109290.0,0.8085212]
[1748321260824,0.8041,109300.0,109290.0,0.81371625]
[1748321261131,0.80422,109300.0,109290.0,0.81371625]
[1748321262213,0.44342,109300.0,109290.0,0.81371625]
[1748321262422,0.44342,109300.0,109290.0,1.17451625]
[1748321262918,0.47452,109300.0,109290.0,1.17451625]
[1748321263116,0.6574644,109300.0,109290.0,0.39505625]
[1748321263421,0.47452,109300.0,109290.0,1.17451625]
[1748321263620,0.44302,109300.0,109290.0,1.17451625]
[1748321263823,0.44302,109300.0,109290.0,1.28183258]
[1748321263824,0.4429,109300.0,109290.0,1.28183258]
[1748321264131,0.41192,109300.0,109290.0,1.28183258]
[1748321264426,0.4118,109300.0,109290.0,1.28183258]
[1748321264627,0.41192,109300.0,109290.0,1.28183258]
[1748321265132,0.44272,109300.0,109290.0,1.28183258]
[1748321265625,0.44272,109300.0,109290.0,1.17451625]
[1748321267027,0.44272,109300.0,109290.0,1.18233577]
[1748321267529,0.44272,109300.0,109290.0,1.2896521]
[1748321267820,0.4426,109300.0,109290.0,1.2896521]
[1748321268029,0.44272,109300.0,109290.0,1.2896521]